[Event "Titled Tuesday Blitz March 15 Late 2022"]
[White "Matinian, Nikita"]
[Black "Logozar, Elijah"]
[WhiteFideId "24129100"]
[BlackFideId "30963788"]
[WhiteElo "2422"]
[BlackElo "2530"]
[Result "1-0"]
[Round "03"]
[TimeControl "180+1"]
[Date "2022.03.16"]
[WhiteClock "0:01:16"]
[BlackClock "0:00:39"]

1. e4 {[%clk 0:02:54]}  c6 {[%clk 0:02:53]} 2. Nc3 {[%clk 0:02:53]}  d5 {[%clk 0:02:53]} 3. Nf3 {[%clk 0:02:54]}  dxe4 {[%clk 0:02:53]} 4. Nxe4 {[%clk 0:02:55]}  Nf6 {[%clk 0:02:54]} 5. Qe2 {[%clk 0:02:55]}  Bg4 {[%clk 0:02:52]} 6. Nxf6+ {[%clk 0:02:52]}  gxf6 {[%clk 0:02:53]} 7. c3 {[%clk 0:02:50]}  Qd5 {[%clk 0:02:50]} 8. d4 {[%clk 0:02:47]}  Nd7 {[%clk 0:02:47]} 9. Be3 {[%clk 0:02:41]}  e5 {[%clk 0:02:43]} 10. h3 {[%clk 0:02:36]}  Bxf3 {[%clk 0:02:40]} 11. gxf3 {[%clk 0:02:37]}  O-O-O {[%clk 0:02:39]} 12. O-O-O {[%clk 0:02:05]}  Qxa2 {[%clk 0:02:38]} 13. Qc4 {[%clk 0:02:04]}  Qxc4 {[%clk 0:02:04]} 14. Bxc4 {[%clk 0:02:05]}  exd4 {[%clk 0:02:01]} 15. cxd4 {[%clk 0:02:06]}  Nb6 {[%clk 0:01:58]} 16. Bxf7 {[%clk 0:02:06]}  Nd5 {[%clk 0:01:58]} 17. Rhg1 {[%clk 0:02:02]}  Bd6 {[%clk 0:01:56]} 18. Rg7 {[%clk 0:02:00]}  Kb8 {[%clk 0:01:48]} 19. Bxd5 {[%clk 0:01:55]}  cxd5 {[%clk 0:01:48]} 20. Rdg1 {[%clk 0:01:55]}  Kc8 {[%clk 0:01:41]} 21. Rf7 {[%clk 0:01:48]}  Rd7 {[%clk 0:01:34]} 22. Rxf6 {[%clk 0:01:43]}  Rf8 {[%clk 0:01:27]} 23. Rxf8+ {[%clk 0:01:42]}  Bxf8 {[%clk 0:01:27]} 24. Rg8 {[%clk 0:01:43]}  Rd8 {[%clk 0:01:23]} 25. Rh8 {[%clk 0:01:29]}  h6 {[%clk 0:01:07]} 26. Kd1 {[%clk 0:01:28]}  Kd7 {[%clk 0:01:04]} 27. Bxh6 {[%clk 0:01:26]}  Bxh6 {[%clk 0:01:02]} 28. Rxh6 {[%clk 0:01:27]}  Rf8 {[%clk 0:01:02]} 29. Ke2 {[%clk 0:01:27]}  Re8+ {[%clk 0:01:00]} 30. Kd2 {[%clk 0:01:26]}  Rf8 {[%clk 0:01:01]} 31. Ke3 {[%clk 0:01:26]}  Re8+ {[%clk 0:01:00]} 32. Kf4 {[%clk 0:01:27]}  Re2 {[%clk 0:01:00]} 33. b4 {[%clk 0:01:18]}  Rb2 {[%clk 0:00:59]} 34. Ke5 {[%clk 0:01:19]}  Rxb4 {[%clk 0:00:58]} 35. f4 {[%clk 0:01:19]}  Rb2 {[%clk 0:00:56]} 36. f5 {[%clk 0:01:20]}  Rxf2 {[%clk 0:00:56]} 37. Rh7+ {[%clk 0:01:15]}  Kc6 {[%clk 0:00:53]} 38. f6 {[%clk 0:01:16]}  a5 {[%clk 0:00:51]} 39. f7 {[%clk 0:01:16]}  a4 {[%clk 0:00:50]} 40. Rh6+ {[%clk 0:01:17]}  Kd7 {[%clk 0:00:50]} 41. Rf6 {[%clk 0:01:15]}  Re2+ {[%clk 0:00:45]} 42. Kxd5 {[%clk 0:01:15]}  a3 {[%clk 0:00:40]} 43. f8=Q {[%clk 0:01:15]}  a2 {[%clk 0:00:40]} 44. Qd6+ {[%clk 0:01:15]}  Ke8 {[%clk 0:00:39]} 45. Rf8# {[%clk 0:01:16]} 1-0


[Site "https://www.chess.com"]

[Event "Titled Tuesday Blitz March 15 Late 2022"]
[White "Meduri, Aakaash"]
[Black "Royal, Shreyas"]
[WhiteFideId "2032252"]
[BlackFideId "448869"]
[WhiteElo "2096"]
[BlackElo "1986"]
[Result "1-0"]
[Round "03"]
[TimeControl "180+1"]
[Date "2022.03.16"]
[WhiteClock "0:00:14"]
[BlackClock "0:01:21"]

1. e4 {[%clk 0:03:00]}  e5 {[%clk 0:02:59]} 2. Nc3 {[%clk 0:03:00]}  Nf6 {[%clk 0:02:59]} 3. Nf3 {[%clk 0:02:59]}  Nc6 {[%clk 0:02:59]} 4. Nxe5 {[%clk 0:02:58]}  Nxe5 {[%clk 0:02:57]} 5. d4 {[%clk 0:02:58]}  Ng6 {[%clk 0:02:55]} 6. e5 {[%clk 0:02:58]}  Ng8 {[%clk 0:02:54]} 7. f4 {[%clk 0:02:59]}  d6 {[%clk 0:02:55]} 8. Be3 {[%clk 0:02:54]}  dxe5 {[%clk 0:02:54]} 9. fxe5 {[%clk 0:02:54]}  N8e7 {[%clk 0:02:47]} 10. Bc4 {[%clk 0:02:52]}  Nf5 {[%clk 0:02:41]} 11. Qf3 {[%clk 0:02:40]}  Be6 {[%clk 0:02:12]} 12. Bxe6 {[%clk 0:02:20]}  fxe6 {[%clk 0:02:13]} 13. O-O {[%clk 0:02:07]}  Qd7 {[%clk 0:01:59]} 14. Qxb7 {[%clk 0:02:01]}  Rd8 {[%clk 0:01:59]} 15. Bg5 {[%clk 0:01:49]}  Be7 {[%clk 0:01:59]} 16. Bxe7 {[%clk 0:01:49]}  Ngxe7 {[%clk 0:02:00]} 17. Rf4 {[%clk 0:01:26]}  O-O {[%clk 0:01:56]} 18. Ne2 {[%clk 0:01:22]}  Ng6 {[%clk 0:01:49]} 19. Rg4 {[%clk 0:00:53]}  Nxe5 {[%clk 0:01:49]} 20. dxe5 {[%clk 0:00:40]}  Ne3 {[%clk 0:01:45]} 21. Rf4 {[%clk 0:00:40]}  Rxf4 {[%clk 0:01:28]} 22. Nxf4 {[%clk 0:00:39]}  Qd4 {[%clk 0:01:29]} 23. Nxe6 {[%clk 0:00:32]}  Qxe5 {[%clk 0:01:21]} 24. Nxd8 {[%clk 0:00:24]}  Ng4 {[%clk 0:01:21]} 25. Qb3+ {[%clk 0:00:14]} 1-0


[Site "https://www.chess.com"]

[Event "Titled Tuesday Blitz March 15 Late 2022"]
[White "Mikhailov, Viacheslav"]
[Black "Perez Leiva, Jerzy Jesus"]
[WhiteFideId "4187369"]
[BlackFideId "3524337"]
[WhiteElo "2381"]
[BlackElo "2261"]
[Result "1-0"]
[Round "03"]
[TimeControl "180+1"]
[Date "2022.03.16"]
[WhiteClock "0:01:05"]
[BlackClock "0:00:29"]

1. Nf3 {[%clk 0:02:59]}  Nf6 {[%clk 0:02:59]} 2. g3 {[%clk 0:02:59]}  d5 {[%clk 0:02:59]} 3. Bg2 {[%clk 0:02:59]}  g6 {[%clk 0:02:58]} 4. O-O {[%clk 0:03:00]}  c5 {[%clk 0:02:57]} 5. c4 {[%clk 0:03:01]}  dxc4 {[%clk 0:02:57]} 6. Na3 {[%clk 0:03:01]}  Bg7 {[%clk 0:02:57]} 7. Nxc4 {[%clk 0:03:00]}  O-O {[%clk 0:02:57]} 8. d3 {[%clk 0:03:01]}  Nc6 {[%clk 0:02:57]} 9. Be3 {[%clk 0:03:00]}  Nd7 {[%clk 0:02:51]} 10. Qd2 {[%clk 0:02:59]}  e5 {[%clk 0:02:44]} 11. Bh6 {[%clk 0:02:57]}  Qe7 {[%clk 0:02:43]} 12. Bxg7 {[%clk 0:02:54]}  Kxg7 {[%clk 0:02:44]} 13. a4 {[%clk 0:02:55]}  Nb6 {[%clk 0:02:36]} 14. Ne3 {[%clk 0:02:34]}  f6 {[%clk 0:02:31]} 15. a5 {[%clk 0:02:34]}  Nd7 {[%clk 0:02:30]} 16. a6 {[%clk 0:02:31]}  Rb8 {[%clk 0:02:27]} 17. Nh4 {[%clk 0:02:23]}  f5 {[%clk 0:02:14]} 18. axb7 {[%clk 0:02:19]}  Bxb7 {[%clk 0:02:15]} 19. Bxc6 {[%clk 0:02:19]}  Bxc6 {[%clk 0:02:15]} 20. Rxa7 {[%clk 0:02:19]}  Rb7 {[%clk 0:02:06]} 21. Rfa1 {[%clk 0:02:17]}  f4 {[%clk 0:02:00]} 22. Nc4 {[%clk 0:01:47]}  g5 {[%clk 0:01:28]} 23. Rxb7 {[%clk 0:01:40]}  Bxb7 {[%clk 0:01:29]} 24. Ra7 {[%clk 0:01:39]}  Bc6 {[%clk 0:00:37]} 25. Nf3 {[%clk 0:01:32]}  Bxf3 {[%clk 0:00:31]} 26. exf3 {[%clk 0:01:33]}  fxg3 {[%clk 0:00:29]} 27. hxg3 {[%clk 0:01:33]}  Rxf3 {[%clk 0:00:29]} 28. Nb6 {[%clk 0:01:05]} 1-0


[Site "https://www.chess.com"]

[Event "Titled Tuesday Blitz March 15 Late 2022"]
[White "Najer, Evgeniy"]
[Black "Ozates, Tuna"]
[WhiteFideId "4118987"]
[BlackFideId "6354521"]
[WhiteElo "2562"]
[BlackElo "1887"]
[Result "0-1"]
[Round "03"]
[TimeControl "180+1"]
[Date "2022.03.16"]
[WhiteClock "0:00:01"]
[BlackClock "0:00:11"]

1. d4 {[%clk 0:02:09]}  Nf6 {[%clk 0:02:55]} 2. c4 {[%clk 0:02:08]}  g6 {[%clk 0:02:55]} 3. Nc3 {[%clk 0:02:07]}  Bg7 {[%clk 0:02:50]} 4. e4 {[%clk 0:02:07]}  d6 {[%clk 0:02:51]} 5. Be2 {[%clk 0:02:07]}  O-O {[%clk 0:02:52]} 6. Be3 {[%clk 0:02:08]}  Na6 {[%clk 0:02:49]} 7. Nf3 {[%clk 0:02:06]}  e5 {[%clk 0:02:48]} 8. O-O {[%clk 0:02:06]}  exd4 {[%clk 0:02:48]} 9. Nxd4 {[%clk 0:02:05]}  Nc5 {[%clk 0:02:48]} 10. Qc2 {[%clk 0:02:03]}  a5 {[%clk 0:02:49]} 11. Rad1 {[%clk 0:01:59]}  Nfd7 {[%clk 0:02:44]} 12. Ndb5 {[%clk 0:01:52]}  Re8 {[%clk 0:02:25]} 13. Nd5 {[%clk 0:01:17]}  Na6 {[%clk 0:02:21]} 14. a3 {[%clk 0:00:59]}  c6 {[%clk 0:02:13]} 15. Nxd6 {[%clk 0:00:57]}  cxd5 {[%clk 0:02:13]} 16. Nxe8 {[%clk 0:00:55]}  Qxe8 {[%clk 0:02:14]} 17. cxd5 {[%clk 0:00:44]}  Ne5 {[%clk 0:02:08]} 18. Bd4 {[%clk 0:00:39]}  Bd7 {[%clk 0:02:08]} 19. f4 {[%clk 0:00:36]}  Rc8 {[%clk 0:02:03]} 20. Qd2 {[%clk 0:00:31]}  Nc4 {[%clk 0:02:03]} 21. Bxc4 {[%clk 0:00:30]}  Rxc4 {[%clk 0:02:04]} 22. Bxg7 {[%clk 0:00:30]}  Kxg7 {[%clk 0:02:04]} 23. e5 {[%clk 0:00:29]}  Qd8 {[%clk 0:02:01]} 24. Kh1 {[%clk 0:00:25]}  Qb6 {[%clk 0:01:58]} 25. Rc1 {[%clk 0:00:20]}  Rd4 {[%clk 0:01:57]} 26. Qf2 {[%clk 0:00:18]}  Bg4 {[%clk 0:01:01]} 27. Rc4 {[%clk 0:00:12]}  Rd1 {[%clk 0:01:00]} 28. Qxb6 {[%clk 0:00:11]}  Rxf1+ {[%clk 0:01:01]} 29. Qg1 {[%clk 0:00:12]}  Rxg1+ {[%clk 0:01:01]} 30. Kxg1 {[%clk 0:00:12]}  Kf8 {[%clk 0:00:53]} 31. Kf2 {[%clk 0:00:12]}  Ke7 {[%clk 0:00:52]} 32. Ke3 {[%clk 0:00:12]}  Bd7 {[%clk 0:00:47]} 33. Kd4 {[%clk 0:00:11]}  h5 {[%clk 0:00:39]} 34. Rc1 {[%clk 0:00:10]}  Bf5 {[%clk 0:00:31]} 35. b3 {[%clk 0:00:06]}  Kd7 {[%clk 0:00:27]} 36. Re1 {[%clk 0:00:05]}  h4 {[%clk 0:00:21]} 37. Kc4 {[%clk 0:00:04]}  Nc7 {[%clk 0:00:20]} 38. Kc5 {[%clk 0:00:04]}  Bc2 {[%clk 0:00:18]} 39. b4 {[%clk 0:00:02]}  axb4 {[%clk 0:00:19]} 40. axb4 {[%clk 0:00:03]}  Bb3 {[%clk 0:00:18]} 41. d6 {[%clk 0:00:01]}  Ne6+ {[%clk 0:00:15]} 42. Kb6 {[%clk 0:00:01]}  Nxf4 {[%clk 0:00:15]} 43. Rc1 {[%clk 0:00:01]}  Nd5+ {[%clk 0:00:11]} 0-1


[Site "https://www.chess.com"]

[Event "Titled Tuesday Blitz March 15 Late 2022"]
[White "Nihal Sarin"]
[Black "Abdrlauf, Elham"]
[WhiteFideId "25092340"]
[BlackFideId "1533533"]
[WhiteElo "2705"]
[BlackElo "2334"]
[Result "1-0"]
[Round "03"]
[TimeControl "180+1"]
[Date "2022.03.15"]
[WhiteClock "0:00:08"]
[BlackClock "0:00:03"]

1. c4 {[%clk 0:02:53]}  e5 {[%clk 0:02:59]} 2. Nc3 {[%clk 0:02:44]}  Nf6 {[%clk 0:02:59]} 3. Nf3 {[%clk 0:02:37]}  e4 {[%clk 0:02:59]} 4. Ng5 {[%clk 0:02:37]}  c6 {[%clk 0:02:59]} 5. Ngxe4 {[%clk 0:02:31]}  Nxe4 {[%clk 0:03:00]} 6. Nxe4 {[%clk 0:02:32]}  d5 {[%clk 0:03:01]} 7. cxd5 {[%clk 0:02:33]}  cxd5 {[%clk 0:03:02]} 8. Ng3 {[%clk 0:02:24]}  Nc6 {[%clk 0:03:02]} 9. e3 {[%clk 0:02:23]}  h5 {[%clk 0:03:03]} 10. h3 {[%clk 0:02:10]}  h4 {[%clk 0:02:53]} 11. Ne2 {[%clk 0:02:09]}  Qg5 {[%clk 0:02:54]} 12. d4 {[%clk 0:02:02]}  Bf5 {[%clk 0:02:45]} 13. Nc3 {[%clk 0:02:02]}  Qg6 {[%clk 0:02:34]} 14. a3 {[%clk 0:01:47]}  Bd6 {[%clk 0:02:02]} 15. Qf3 {[%clk 0:01:44]}  O-O-O {[%clk 0:02:00]} 16. Be2 {[%clk 0:01:32]}  Be6 {[%clk 0:01:35]} 17. O-O {[%clk 0:01:19]}  f5 {[%clk 0:01:35]} 18. Bd2 {[%clk 0:01:04]}  Qf7 {[%clk 0:01:22]} 19. Nb5 {[%clk 0:01:04]}  Bb8 {[%clk 0:01:13]} 20. Rfc1 {[%clk 0:01:05]}  g5 {[%clk 0:01:13]} 21. Bd3 {[%clk 0:01:05]}  Kd7 {[%clk 0:01:02]} 22. Nc3 {[%clk 0:00:56]}  a6 {[%clk 0:00:38]} 23. Na4 {[%clk 0:00:55]}  Ke7 {[%clk 0:00:26]} 24. Nc5 {[%clk 0:00:48]}  Bc8 {[%clk 0:00:26]} 25. Nxa6 {[%clk 0:00:48]}  Bd6 {[%clk 0:00:22]} 26. Nb4 {[%clk 0:00:48]}  Qe6 {[%clk 0:00:06]} 27. Nxd5+ {[%clk 0:00:36]}  Kf7 {[%clk 0:00:06]} 28. Nb6 {[%clk 0:00:36]}  Kg7 {[%clk 0:00:04]} 29. Nxc8 {[%clk 0:00:37]}  Rxc8 {[%clk 0:00:03]} 30. Bxf5 {[%clk 0:00:36]}  Qe7 {[%clk 0:00:02]} 31. Bxc8 {[%clk 0:00:35]}  Rxc8 {[%clk 0:00:03]} 32. Qg4 {[%clk 0:00:27]}  Rf8 {[%clk 0:00:03]} 33. e4 {[%clk 0:00:24]}  Bf4 {[%clk 0:00:04]} 34. Rd1 {[%clk 0:00:16]}  Kg6 {[%clk 0:00:02]} 35. Be3 {[%clk 0:00:15]}  Qxe4 {[%clk 0:00:02]} 36. Rac1 {[%clk 0:00:13]}  Qd5 {[%clk 0:00:02]} 37. Rc5 {[%clk 0:00:13]}  Qd8 {[%clk 0:00:03]} 38. Re1 {[%clk 0:00:11]}  Qe7 {[%clk 0:00:03]} 39. Qd1 {[%clk 0:00:08]}  Re8 {[%clk 0:00:03]} 40. Qd3+ {[%clk 0:00:08]}  Kh5 {[%clk 0:00:02]} 41. Bd2 {[%clk 0:00:08]}  Qxe1+ {[%clk 0:00:03]} 42. Bxe1 {[%clk 0:00:08]}  Rxe1+ {[%clk 0:00:04]} 43. Qf1 {[%clk 0:00:09]}  Bh2+ {[%clk 0:00:04]} 44. Kxh2 {[%clk 0:00:10]}  Rxf1 {[%clk 0:00:05]} 45. d5 {[%clk 0:00:09]}  Nb8 {[%clk 0:00:02]} 46. Rc7 {[%clk 0:00:07]}  b5 {[%clk 0:00:01]} 47. Rb7 {[%clk 0:00:07]}  Na6 {[%clk 0:00:02]} 48. b4 {[%clk 0:00:07]}  Rd1 {[%clk 0:00:02]} 49. Rh7+ {[%clk 0:00:06]}  Kg6 {[%clk 0:00:02]} 50. Ra7 {[%clk 0:00:07]}  Nb8 {[%clk 0:00:02]} 51. Rb7 {[%clk 0:00:08]}  Rxd5 {[%clk 0:00:01]} 52. Rxb8 {[%clk 0:00:08]}  Kh5 {[%clk 0:00:02]} 53. f3 {[%clk 0:00:07]}  Re5 {[%clk 0:00:02]} 54. Rc8 {[%clk 0:00:08]}  Rd5 {[%clk 0:00:02]} 55. Rc5 {[%clk 0:00:08]}  Rd3 {[%clk 0:00:03]} 56. Rxb5 {[%clk 0:00:08]}  Rxa3 {[%clk 0:00:03]} 57. f4 {[%clk 0:00:08]} 1-0


[Site "https://www.chess.com"]

[Event "Titled Tuesday Blitz March 15 Late 2022"]
[White "Olsen, Filip Boe"]
[Black "Fier, Alexandr"]
[WhiteFideId "1440640"]
[BlackFideId "2107139"]
[WhiteElo "2188"]
[BlackElo "2571"]
[Result "1-0"]
[Round "03"]
[TimeControl "180+1"]
[Date "2022.03.16"]
[WhiteClock "0:01:06"]
[BlackClock "0:02:14"]

1. d4 {[%clk 0:03:00]}  c5 {[%clk 0:02:59]} 2. c3 {[%clk 0:03:00]}  Nf6 {[%clk 0:02:59]} 3. Nf3 {[%clk 0:03:00]}  b6 {[%clk 0:02:59]} 4. Bf4 {[%clk 0:03:00]}  Bb7 {[%clk 0:02:59]} 5. e3 {[%clk 0:03:00]}  g6 {[%clk 0:02:59]} 6. Nbd2 {[%clk 0:03:01]}  d6 {[%clk 0:02:59]} 7. h3 {[%clk 0:03:00]}  Nbd7 {[%clk 0:03:00]} 8. Bd3 {[%clk 0:03:00]}  Bg7 {[%clk 0:03:00]} 9. Qe2 {[%clk 0:03:00]}  O-O {[%clk 0:03:01]} 10. O-O {[%clk 0:03:00]}  Re8 {[%clk 0:03:02]} 11. e4 {[%clk 0:02:59]}  cxd4 {[%clk 0:03:01]} 12. cxd4 {[%clk 0:03:00]}  e5 {[%clk 0:03:02]} 13. dxe5 {[%clk 0:02:59]}  d5 {[%clk 0:03:03]} 14. exf6 {[%clk 0:02:54]}  dxe4 {[%clk 0:03:03]} 15. fxg7 {[%clk 0:02:35]}  exf3 {[%clk 0:03:02]} 16. Qd1 {[%clk 0:02:32]}  fxg2 {[%clk 0:03:02]} 17. Re1 {[%clk 0:02:32]}  Qh4 {[%clk 0:03:02]} 18. Qg4 {[%clk 0:02:28]}  Qxg4 {[%clk 0:02:53]} 19. hxg4 {[%clk 0:02:29]}  Nc5 {[%clk 0:02:53]} 20. Bb5 {[%clk 0:02:25]}  Red8 {[%clk 0:02:52]} 21. Bg5 {[%clk 0:02:09]}  Rd5 {[%clk 0:02:51]} 22. Nf3 {[%clk 0:02:00]}  Ne6 {[%clk 0:02:46]} 23. Bc4 {[%clk 0:01:52]}  Nxg5 {[%clk 0:02:39]} 24. Bxd5 {[%clk 0:01:46]}  Nh3+ {[%clk 0:02:39]} 25. Kxg2 {[%clk 0:01:43]}  Nf4+ {[%clk 0:02:40]} 26. Kg3 {[%clk 0:01:40]}  Nxd5 {[%clk 0:02:41]} 27. Rad1 {[%clk 0:01:38]}  Kxg7 {[%clk 0:02:40]} 28. Ne5 {[%clk 0:01:37]}  Rc8 {[%clk 0:02:39]} 29. Rd2 {[%clk 0:01:35]}  Nf6 {[%clk 0:02:36]} 30. f3 {[%clk 0:01:32]}  h5 {[%clk 0:02:36]} 31. g5 {[%clk 0:01:27]}  Ng8 {[%clk 0:02:32]} 32. Rd7 {[%clk 0:01:24]}  Bd5 {[%clk 0:02:17]} 33. Rxd5 {[%clk 0:01:20]}  Ne7 {[%clk 0:02:15]} 34. Rd7 {[%clk 0:01:20]}  Nf5+ {[%clk 0:02:15]} 35. Kf4 {[%clk 0:01:20]}  Rc4+ {[%clk 0:02:15]} 36. Re4 {[%clk 0:01:20]}  Rc5 {[%clk 0:02:13]} 37. Nxf7 {[%clk 0:01:09]}  Kg8 {[%clk 0:02:14]} 38. Nh6+ {[%clk 0:01:06]} 1-0


[Site "https://www.chess.com"]

[Event "Titled Tuesday Blitz March 15 Late 2022"]
[White "Oro, Luis"]
[Black "Ciolek, Andreas"]
[WhiteFideId "104094"]
[BlackFideId "12906727"]
[WhiteElo "2255"]
[BlackElo "2215"]
[Result "1-0"]
[Round "03"]
[TimeControl "180+1"]
[Date "2022.03.16"]
[WhiteClock "0:00:23"]
[BlackClock "0:00:11"]

1. e4 {[%clk 0:03:00]}  c5 {[%clk 0:02:40]} 2. Nf3 {[%clk 0:02:59]}  d6 {[%clk 0:02:40]} 3. d4 {[%clk 0:02:59]}  cxd4 {[%clk 0:02:41]} 4. Nxd4 {[%clk 0:03:00]}  Nf6 {[%clk 0:02:40]} 5. Nc3 {[%clk 0:03:01]}  a6 {[%clk 0:02:41]} 6. f3 {[%clk 0:03:00]}  e5 {[%clk 0:02:40]} 7. Nb3 {[%clk 0:03:00]}  Be7 {[%clk 0:02:40]} 8. Be3 {[%clk 0:03:00]}  Be6 {[%clk 0:02:40]} 9. Qd2 {[%clk 0:03:00]}  h5 {[%clk 0:02:40]} 10. O-O-O {[%clk 0:03:00]}  Nbd7 {[%clk 0:02:41]} 11. Kb1 {[%clk 0:02:55]}  Rc8 {[%clk 0:02:40]} 12. Nd5 {[%clk 0:02:52]}  Nxd5 {[%clk 0:02:39]} 13. exd5 {[%clk 0:02:52]}  Bf5 {[%clk 0:02:40]} 14. Bd3 {[%clk 0:02:53]}  Bxd3 {[%clk 0:02:41]} 15. Qxd3 {[%clk 0:02:54]}  Bg5 {[%clk 0:02:41]} 16. Nd2 {[%clk 0:02:33]}  Bxe3 {[%clk 0:02:22]} 17. Qxe3 {[%clk 0:02:32]}  Nc5 {[%clk 0:02:04]} 18. f4 {[%clk 0:02:26]}  Qe7 {[%clk 0:01:50]} 19. Rhe1 {[%clk 0:02:21]}  f6 {[%clk 0:01:43]} 20. fxe5 {[%clk 0:02:19]}  fxe5 {[%clk 0:01:44]} 21. Qh3 {[%clk 0:02:16]}  Kd8 {[%clk 0:01:37]} 22. Nf3 {[%clk 0:01:57]}  Qf6 {[%clk 0:01:25]} 23. Nh4 {[%clk 0:01:48]}  g5 {[%clk 0:01:01]} 24. Nf5 {[%clk 0:01:31]}  g4 {[%clk 0:01:00]} 25. Qh4 {[%clk 0:01:31]}  Rf8 {[%clk 0:00:45]} 26. Qxf6+ {[%clk 0:01:31]}  Rxf6 {[%clk 0:00:46]} 27. Rf1 {[%clk 0:01:27]}  Ne4 {[%clk 0:00:43]} 28. Kc1 {[%clk 0:01:25]}  Kd7 {[%clk 0:00:37]} 29. Ng7 {[%clk 0:01:17]}  h4 {[%clk 0:00:29]} 30. Rxf6 {[%clk 0:01:10]}  Nxf6 {[%clk 0:00:30]} 31. c3 {[%clk 0:00:49]}  Rg8 {[%clk 0:00:23]} 32. Nf5 {[%clk 0:00:49]}  h3 {[%clk 0:00:23]} 33. g3 {[%clk 0:00:49]}  Rg5 {[%clk 0:00:20]} 34. Ne3 {[%clk 0:00:48]}  Ne4 {[%clk 0:00:18]} 35. Rf1 {[%clk 0:00:44]}  Rg7 {[%clk 0:00:16]} 36. Kc2 {[%clk 0:00:39]}  Ke7 {[%clk 0:00:13]} 37. Kd3 {[%clk 0:00:38]}  Nc5+ {[%clk 0:00:13]} 38. Ke2 {[%clk 0:00:35]}  Kd7 {[%clk 0:00:12]} 39. Rf6 {[%clk 0:00:25]}  b5 {[%clk 0:00:08]} 40. Nf5 {[%clk 0:00:23]}  Rg8 {[%clk 0:00:07]} 41. Rxd6+ {[%clk 0:00:22]}  Ke8 {[%clk 0:00:06]} 42. Rc6 {[%clk 0:00:21]}  Ne4 {[%clk 0:00:05]} 43. Rc8+ {[%clk 0:00:20]}  Kf7 {[%clk 0:00:06]} 44. Nh6+ {[%clk 0:00:21]}  Kg7 {[%clk 0:00:06]} 45. Nxg8 {[%clk 0:00:19]}  Nxg3+ {[%clk 0:00:07]} 46. Kf2 {[%clk 0:00:20]}  Ne4+ {[%clk 0:00:06]} 47. Kg1 {[%clk 0:00:20]}  Nd2 {[%clk 0:00:06]} 48. Ne7 {[%clk 0:00:19]}  e4 {[%clk 0:00:06]} 49. Nf5+ {[%clk 0:00:19]}  Kf6 {[%clk 0:00:06]} 50. Ne3 {[%clk 0:00:20]}  Ke5 {[%clk 0:00:07]} 51. Nxg4+ {[%clk 0:00:19]}  Kf4 {[%clk 0:00:07]} 52. Nf2 {[%clk 0:00:19]}  e3 {[%clk 0:00:07]} 53. Nxh3+ {[%clk 0:00:19]}  Kf3 {[%clk 0:00:07]} 54. Rf8+ {[%clk 0:00:18]}  Kg4 {[%clk 0:00:06]} 55. Nf4 {[%clk 0:00:18]}  Nf3+ {[%clk 0:00:05]} 56. Kh1 {[%clk 0:00:18]}  Kg5 {[%clk 0:00:04]} 57. Ne2 {[%clk 0:00:18]}  Ne5 {[%clk 0:00:04]} 58. Re8 {[%clk 0:00:18]}  Nc4 {[%clk 0:00:03]} 59. Kg2 {[%clk 0:00:17]}  Kf5 {[%clk 0:00:04]} 60. Kf3 {[%clk 0:00:17]}  Nxb2 {[%clk 0:00:04]} 61. Rxe3 {[%clk 0:00:17]}  Nd1 {[%clk 0:00:05]} 62. Rd3 {[%clk 0:00:17]}  Nb2 {[%clk 0:00:05]} 63. Rd4 {[%clk 0:00:17]}  Nc4 {[%clk 0:00:05]} 64. Ng3+ {[%clk 0:00:18]}  Kf6 {[%clk 0:00:05]} 65. h4 {[%clk 0:00:18]}  Ne5+ {[%clk 0:00:05]} 66. Kf4 {[%clk 0:00:18]}  Ng6+ {[%clk 0:00:04]} 67. Kg4 {[%clk 0:00:19]}  Ne5+ {[%clk 0:00:05]} 68. Kh3 {[%clk 0:00:20]}  Nf3 {[%clk 0:00:05]} 69. Rf4+ {[%clk 0:00:20]}  Ke5 {[%clk 0:00:06]} 70. Rxf3 {[%clk 0:00:20]}  Kxd5 {[%clk 0:00:07]} 71. h5 {[%clk 0:00:21]}  Kc4 {[%clk 0:00:07]} 72. h6 {[%clk 0:00:21]}  a5 {[%clk 0:00:08]} 73. h7 {[%clk 0:00:21]}  b4 {[%clk 0:00:09]} 74. cxb4 {[%clk 0:00:21]}  Kxb4 {[%clk 0:00:10]} 75. h8=Q {[%clk 0:00:21]}  Ka4 {[%clk 0:00:10]} 76. Qd4+ {[%clk 0:00:22]}  Kb5 {[%clk 0:00:11]} 77. Rf5+ {[%clk 0:00:22]}  Kc6 {[%clk 0:00:11]} 78. Qf6+ {[%clk 0:00:23]}  Kd7 {[%clk 0:00:11]} 79. Rh5 {[%clk 0:00:23]}  Ke8 {[%clk 0:00:12]} 80. Rh7 {[%clk 0:00:22]}  a4 {[%clk 0:00:11]} 81. Qh8# {[%clk 0:00:23]} 1-0


[Site "https://www.chess.com"]